[Event "*** Titled Tuesday Blitz"]
[Site "Chess.com"]
[Date "2018.05.01"]
[Round "3"]
[White "lucasmito"]
[Black "Anar_Aliakbarov"]
[Result "0-1"]
[WhiteElo "2336"]
[BlackElo "2402"]
[TimeControl "180+2"]
[EndTime "13:40:36 PDT"]
[Termination "Anar_Aliakbarov won by checkmate"]

1. e4 {[%clk 0:03:01.9]} 1... c5 {[%clk 0:02:57.9]} 2. Nf3 {[%clk 0:03:03.1]}
2... e6 {[%clk 0:02:59.4]} 3. d4 {[%clk 0:03:04.6]} 3... cxd4 {[%clk 0:03:01.3]}
4. Nxd4 {[%clk 0:03:06.5]} 4... Nc6 {[%clk 0:03:03]} 5. Nc3 {[%clk 0:03:08]}
5... d6 {[%clk 0:03:04.5]} 6. Be3 {[%clk 0:03:09.5]} 6... Nf6 {[%clk 0:03:05.2]}
7. f3 {[%clk 0:03:10.6]} 7... Be7 {[%clk 0:03:06.3]} 8. Qd2 {[%clk 0:03:12.1]}
8... O-O {[%clk 0:03:07.6]} 9. O-O-O {[%clk 0:03:13.6]} 9... d5 {[%clk
0:03:09.1]} 10. Kb1 {[%clk 0:03:12.5]} 10... dxe4 {[%clk 0:02:51.8]} 11. Nxc6
{[%clk 0:03:13.5]} 11... bxc6 {[%clk 0:02:50.5]} 12. Qxd8 {[%clk 0:03:11.1]}
12... Rxd8 {[%clk 0:02:50.2]} 13. Rxd8+ {[%clk 0:03:10.8]} 13... Bxd8 {[%clk
0:02:52.1]} 14. Nxe4 {[%clk 0:03:10.6]} 14... Nxe4 {[%clk 0:02:52.5]} 15. fxe4
{[%clk 0:03:11]} 15... e5 {[%clk 0:02:47.1]} 16. Bc4 {[%clk 0:03:09.5]} 16...
Bb6 {[%clk 0:02:43.7]} 17. Bxb6 {[%clk 0:02:38.1]} 17... axb6 {[%clk 0:02:45.6]}
18. Rd1 {[%clk 0:02:39.5]} 18... Bg4 {[%clk 0:02:18.5]} 19. Rd6 {[%clk 0:02:38]}
19... b5 {[%clk 0:02:15]} 20. Bb3 {[%clk 0:02:12.1]} 20... Rc8 {[%clk
0:02:12.9]} 21. a4 {[%clk 0:02:12.6]} 21... bxa4 {[%clk 0:02:08.6]} 22. Bxa4
{[%clk 0:02:14.5]} 22... c5 {[%clk 0:02:09]} 23. Rd5 {[%clk 0:02:13.7]} 23... f6
{[%clk 0:02:03.1]} 24. Bd7 {[%clk 0:02:14.8]} 24... Bxd7 {[%clk 0:02:02.5]} 25.
Rxd7 {[%clk 0:02:16.7]} 25... h5 {[%clk 0:01:57.5]} 26. Kc1 {[%clk 0:02:16.8]}
26... Kh7 {[%clk 0:01:58.3]} 27. Kd2 {[%clk 0:02:17.1]} 27... Kh6 {[%clk
0:01:59.3]} 28. Kc3 {[%clk 0:02:18.6]} 28... g6 {[%clk 0:02:00.7]} 29. Kc4
{[%clk 0:02:19.4]} 29... Kg5 {[%clk 0:02:02.1]} 30. Rd5 {[%clk 0:02:18.8]} 30...
Rb8 {[%clk 0:02:03.5]} 31. b3 {[%clk 0:02:18.5]} 31... Rb4+ {[%clk 0:02:04.8]}
32. Kd3 {[%clk 0:02:20.1]} 32... Rb5 {[%clk 0:01:23.5]} 33. Kc4 {[%clk
0:02:20.3]} 33... Rb4+ {[%clk 0:01:24.6]} 34. Kd3 {[%clk 0:02:21.9]} 34... Rb5
{[%clk 0:01:01.5]} 35. Kc4 {[%clk 0:02:22.7]} 35... Rb4+ {[%clk 0:01:02.4]} 36.
Kd3 {[%clk 0:02:24.4]} 36... Rb5 {[%clk 0:01:03.4]} 37. Rd6 {[%clk 0:02:08.7]}
37... f5 {[%clk 0:00:43.5]} 38. g3 {[%clk 0:02:09.7]} 38... Rb4 {[%clk
0:00:29.4]} 39. h4+ {[%clk 0:02:00.1]} 39... Kg4 {[%clk 0:00:21.3]} 40. Rxg6+
{[%clk 0:02:00]} 40... Kf3 {[%clk 0:00:22.6]} 41. exf5 {[%clk 0:01:56.2]} 41...
e4+ {[%clk 0:00:21.8]} 42. Kd2 {[%clk 0:01:01.7]} 42... e3+ {[%clk 0:00:23.7]}
43. Ke1 {[%clk 0:01:02.4]} 43... c4 {[%clk 0:00:17.6]} 44. f6 {[%clk 0:00:56.8]}
44... cxb3 {[%clk 0:00:17.8]} 45. cxb3 {[%clk 0:00:57.2]} 45... Rxb3 {[%clk
0:00:18.2]} 46. Kd1 {[%clk 0:00:48.1]} 46... e2+ {[%clk 0:00:14.9]} 47. Kd2
{[%clk 0:00:48.6]} 47... Rb2+ {[%clk 0:00:12]} 48. Kc3 {[%clk 0:00:49.7]} 48...
Rb1 {[%clk 0:00:11.7]} 49. f7 {[%clk 0:00:44.3]} 49... e1=Q+ {[%clk 0:00:12.8]}
50. Kc2 {[%clk 0:00:45.3]} 50... Qd1+ {[%clk 0:00:08.8]} 51. Kc3 {[%clk
0:00:46.8]} 51... Rc1+ {[%clk 0:00:07.9]} 52. Kb4 {[%clk 0:00:47.7]} 52... Qd2+
{[%clk 0:00:07.7]} 53. Kb5 {[%clk 0:00:48.4]} 53... Qb2+ {[%clk 0:00:08.7]} 54.
Ka6 {[%clk 0:00:48.5]} 54... Ra1# {[%clk 0:00:07.9]} 0-1

[Event "*** Titled Tuesday Blitz"]
[Site "Chess.com"]
[Date "2018.05.01"]
[Round "3"]
[White "Mikhail_Golubev"]
[Black "bascheyaro"]
[Result "0-1"]
[WhiteElo "2376"]
[BlackElo "2670"]
[TimeControl "180+2"]
[EndTime "13:40:37 PDT"]
[Termination "bascheyaro won by resignation"]

1. e4 {[%clk 0:03:01.9]} 1... e6 {[%clk 0:03:00.8]} 2. d4 {[%clk 0:03:01.4]}
2... d5 {[%clk 0:03:02.7]} 3. Nc3 {[%clk 0:03:01.9]} 3... Bb4 {[%clk 0:03:02.4]}
4. e5 {[%clk 0:03:01.2]} 4... Ne7 {[%clk 0:03:03.3]} 5. a3 {[%clk 0:03:01.8]}
5... Bxc3+ {[%clk 0:03:04.7]} 6. bxc3 {[%clk 0:03:02.6]} 6... b6 {[%clk
0:03:06.6]} 7. Qg4 {[%clk 0:03:02.3]} 7... O-O {[%clk 0:03:07.3]} 8. Bd3 {[%clk
0:02:37.4]} 8... Ba6 {[%clk 0:03:08.1]} 9. Nf3 {[%clk 0:02:36.4]} 9... Bxd3
{[%clk 0:03:07.8]} 10. cxd3 {[%clk 0:02:36.9]} 10... c5 {[%clk 0:03:09.2]} 11.
O-O {[%clk 0:02:28.5]} 11... Nbc6 {[%clk 0:03:09.9]} 12. dxc5 {[%clk 0:02:06.6]}
12... bxc5 {[%clk 0:03:11]} 13. Bg5 {[%clk 0:02:07]} 13... Kh8 {[%clk
0:03:11.7]} 14. Qh4 {[%clk 0:02:00.6]} 14... Qc7 {[%clk 0:03:10.9]} 15. Qh5
{[%clk 0:01:43.9]} 15... Nxe5 {[%clk 0:02:56.4]} 16. Nxe5 {[%clk 0:01:29.3]}
16... Qxe5 {[%clk 0:02:57.5]} 17. Rae1 {[%clk 0:01:29.4]} 17... Qc7 {[%clk
0:02:45.1]} 18. Re3 {[%clk 0:01:29.9]} 18... Ng8 {[%clk 0:02:39.3]} 19. f4
{[%clk 0:01:06]} 19... h6 {[%clk 0:02:30.2]} 20. f5 {[%clk 0:01:03]} 20... f6
{[%clk 0:02:24.1]} 21. Bh4 {[%clk 0:00:46.5]} 21... e5 {[%clk 0:02:25.4]} 22. g4
{[%clk 0:00:46.9]} 22... Qf7 {[%clk 0:02:25.8]} 23. d4 {[%clk 0:00:41.7]} 23...
Qxh5 {[%clk 0:02:23.3]} 24. gxh5 {[%clk 0:00:42.1]} 24... cxd4 {[%clk
0:02:22.8]} 25. cxd4 {[%clk 0:00:42.9]} 25... e4 {[%clk 0:02:24.3]} 26. Rc3
{[%clk 0:00:34.5]} 26... Rfc8 {[%clk 0:02:25.2]} 27. Rc5 {[%clk 0:00:23.1]}
27... Ne7 {[%clk 0:02:25.8]} 28. Bg3 {[%clk 0:00:20.7]} 28... Rxc5 {[%clk
0:02:21.4]} 29. dxc5 {[%clk 0:00:21.4]} 29... Nc6 {[%clk 0:02:13.4]} 30. Rb1
{[%clk 0:00:15]} 30... d4 {[%clk 0:02:13]} 31. Kf2 {[%clk 0:00:14.8]} 31... Rd8
{[%clk 0:02:11.7]} 32. Bd6 {[%clk 0:00:13.1]} 32... Re8 {[%clk 0:02:02.2]} 33.
Ke2 {[%clk 0:00:10.7]} 33... e3 {[%clk 0:01:29.7]} 34. Rb2 {[%clk 0:00:08]}
34... Kg8 {[%clk 0:01:26.8]} 35. Kd3 {[%clk 0:00:04.2]} 35... a5 {[%clk
0:00:59.7]} 36. Re2 {[%clk 0:00:04.5]} 36... a4 {[%clk 0:01:00]} 37. Rb2 {[%clk
0:00:05]} 37... Na5 {[%clk 0:00:55.4]} 38. Rc2 {[%clk 0:00:04.2]} 38... Nc6
{[%clk 0:00:37.9]} 39. Rb2 {[%clk 0:00:04.2]} 39... Kh7 {[%clk 0:00:39.4]} 40.
Re2 {[%clk 0:00:04.8]} 40... Ra8 {[%clk 0:00:30.3]} 41. Rb2 {[%clk 0:00:05.3]}
41... Rd8 {[%clk 0:00:23.6]} 42. Rb6 {[%clk 0:00:04.9]} 42... Rc8 {[%clk
0:00:24.8]} 43. Rb2 {[%clk 0:00:05.2]} 43... Re8 {[%clk 0:00:25.9]} 44. Re2
{[%clk 0:00:05.3]} 44... Kg8 {[%clk 0:00:27.3]} 45. Rb2 {[%clk 0:00:06.1]} 45...
Na5 {[%clk 0:00:28.7]} 46. Re2 {[%clk 0:00:04.6]} 46... Nb3 {[%clk 0:00:29.5]}
47. Rc2 {[%clk 0:00:04.2]} 47... e2 {[%clk 0:00:30.7]} 48. Bg3 {[%clk
0:00:03.1]} 48... Re3+ {[%clk 0:00:31.5]} 49. Kc4 {[%clk 0:00:03.1]} 49... Rxg3
{[%clk 0:00:32.6]} 50. Rxe2 {[%clk 0:00:04.1]} 50... Rc3+ {[%clk 0:00:33.8]} 51.
Kd5 {[%clk 0:00:04.9]} 51... Rxc5+ {[%clk 0:00:35]} 52. Ke6 {[%clk 0:00:05.6]}
52... Re5+ {[%clk 0:00:36.1]} 0-1

[Event "*** Titled Tuesday Blitz"]
[Site "Chess.com"]
[Date "2018.05.01"]
[Round "3"]
[White "Karina_Oparina"]
[Black "Too_Stupid_To_Play"]
[Result "1-0"]
[WhiteElo "2096"]
[BlackElo "2184"]
[TimeControl "180+2"]
[EndTime "13:40:41 PDT"]
[Termination "Karina_Oparina won by resignation"]

1. Nf3 {[%clk 0:02:58.8]} 1... Nf6 {[%clk 0:02:59.1]} 2. d4 {[%clk 0:02:57.2]}
2... e6 {[%clk 0:02:59.3]} 3. c4 {[%clk 0:02:57.4]} 3... b6 {[%clk 0:03:00.5]}
4. g3 {[%clk 0:02:58.1]} 4... Ba6 {[%clk 0:03:01.5]} 5. b3 {[%clk 0:02:58.2]}
5... Bb4+ {[%clk 0:03:02.7]} 6. Bd2 {[%clk 0:02:59]} 6... Be7 {[%clk 0:03:04.6]}
7. Bg2 {[%clk 0:02:59.3]} 7... d5 {[%clk 0:03:05.5]} 8. O-O {[%clk 0:02:58.8]}
8... O-O {[%clk 0:03:04.3]} 9. Ne5 {[%clk 0:02:56.8]} 9... c6 {[%clk 0:03:04.6]}
10. Bc3 {[%clk 0:02:56.2]} 10... Nfd7 {[%clk 0:03:05.6]} 11. Nxd7 {[%clk
0:02:55.3]} 11... Nxd7 {[%clk 0:03:07.5]} 12. Nd2 {[%clk 0:02:55.9]} 12... Bf6
{[%clk 0:03:07]} 13. e4 {[%clk 0:02:54.8]} 13... dxe4 {[%clk 0:02:49.4]} 14.
Nxe4 {[%clk 0:02:53.5]} 14... Be7 {[%clk 0:02:50.8]} 15. Rc1 {[%clk 0:02:42.3]}
15... Rc8 {[%clk 0:02:46.4]} 16. Re1 {[%clk 0:02:40.9]} 16... Nf6 {[%clk
0:02:40.7]} 17. Ba1 {[%clk 0:02:37.5]} 17... Nxe4 {[%clk 0:00:52.5]} 18. Bxe4
{[%clk 0:02:24.7]} 18... Bf6 {[%clk 0:00:48.3]} 19. Qd3 {[%clk 0:02:01.4]} 19...
g6 {[%clk 0:00:42.4]} 20. Qf3 {[%clk 0:01:50.2]} 20... Bxd4 {[%clk 0:00:34.4]}
21. Bxc6 {[%clk 0:01:48.4]} 21... Bxa1 {[%clk 0:00:26.9]} 22. Rxa1 {[%clk
0:01:48.9]} 22... Qc7 {[%clk 0:00:28]} 23. Be4 {[%clk 0:01:46.7]} 23... Rfd8
{[%clk 0:00:28]} 24. Rad1 {[%clk 0:01:46.2]} 24... Rxd1 {[%clk 0:00:28.1]} 25.
Rxd1 {[%clk 0:01:45.8]} 25... Rd8 {[%clk 0:00:30]} 26. Rxd8+ {[%clk 0:01:35.8]}
26... Qxd8 {[%clk 0:00:31.9]} 27. Qd3 {[%clk 0:01:36.6]} 27... Qxd3 {[%clk
0:00:31.9]} 28. Bxd3 {[%clk 0:01:37.2]} 28... Kg7 {[%clk 0:00:33.8]} 29. f4
{[%clk 0:01:35.6]} 29... Kf6 {[%clk 0:00:29.4]} 30. Kf2 {[%clk 0:01:35.4]} 30...
e5 {[%clk 0:00:30.7]} 31. Ke3 {[%clk 0:01:35.6]} 31... exf4+ {[%clk 0:00:31]}
32. Kxf4 {[%clk 0:01:35.8]} 32... Ke6 {[%clk 0:00:27.5]} 33. Ke4 {[%clk
0:01:36.4]} 33... Bb7+ {[%clk 0:00:26.5]} 34. Kd4 {[%clk 0:01:36.8]} 34... f5
{[%clk 0:00:21.1]} 35. b4 {[%clk 0:01:35.8]} 35... g5 {[%clk 0:00:20.9]} 36. g4
{[%clk 0:01:27.9]} 36... fxg4 {[%clk 0:00:11.4]} 37. Bxh7 {[%clk 0:01:28.3]}
37... Kd6 {[%clk 0:00:09.7]} 38. Bf5 {[%clk 0:01:26.9]} 38... Bf3 {[%clk
0:00:08.9]} 39. a3 {[%clk 0:01:24.1]} 39... Bd1 {[%clk 0:00:09.7]} 40. Be4
{[%clk 0:01:23.2]} 40... Bf3 {[%clk 0:00:09.6]} 41. c5+ {[%clk 0:01:16.8]} 41...
bxc5+ {[%clk 0:00:10.5]} 42. bxc5+ {[%clk 0:01:17.5]} 42... Kc7 {[%clk
0:00:11.5]} 43. Ke5 {[%clk 0:01:09.7]} 43... a5 {[%clk 0:00:06.6]} 44. Bd5
{[%clk 0:01:09.1]} 44... Be2 {[%clk 0:00:04.5]} 45. Kf6 {[%clk 0:01:08.1]} 45...
Bf3 {[%clk 0:00:05.8]} 46. Be6 {[%clk 0:01:05.2]} 46... Kc6 {[%clk 0:00:06.4]}
47. Kxg5 {[%clk 0:01:05.4]} 47... Kxc5 {[%clk 0:00:07.8]} 48. Bxg4 {[%clk
0:01:06.1]} 48... Bd5 {[%clk 0:00:03.4]} 49. Be2 {[%clk 0:01:04.7]} 49... Kd4
{[%clk 0:00:03.7]} 50. h4 {[%clk 0:01:00.6]} 50... Kc3 {[%clk 0:00:04.8]} 51.
Bd1 {[%clk 0:00:54.6]} 51... Kb2 {[%clk 0:00:03]} 52. a4 {[%clk 0:00:53.9]}
52... Bb3 {[%clk 0:00:03]} 53. Bxb3 {[%clk 0:00:51.8]} 53... Kxb3 {[%clk
0:00:04.9]} 54. h5 {[%clk 0:00:52.8]} 54... Kxa4 {[%clk 0:00:06.8]} 55. h6
{[%clk 0:00:53.9]} 55... Kb3 {[%clk 0:00:08.7]} 56. h7 {[%clk 0:00:54.8]} 56...
a4 {[%clk 0:00:10.6]} 57. h8=Q {[%clk 0:00:54.5]} 57... a3 {[%clk 0:00:12.5]}
58. Qa1 {[%clk 0:00:54.8]} 58... a2 {[%clk 0:00:13.6]} 59. Kf4 {[%clk
0:00:55.6]} 1-0

[Event "*** Titled Tuesday Blitz"]
[Site "Chess.com"]
[Date "2018.05.01"]
[Round "3"]
[White "saraswathii"]
[Black "dmosesov"]
[Result "1/2-1/2"]
[WhiteElo "2270"]
[BlackElo "2190"]
[TimeControl "180+2"]
[EndTime "13:40:56 PDT"]
[Termination "Game drawn - insufficient material"]

1. d4 {[%clk 0:03:00.8]} 1... Nf6 {[%clk 0:02:59.1]} 2. Bf4 {[%clk 0:03:01.3]}
2... b6 {[%clk 0:02:54.2]} 3. e3 {[%clk 0:03:02.4]} 3... Bb7 {[%clk 0:02:54.7]}
4. Nf3 {[%clk 0:03:02.4]} 4... g6 {[%clk 0:02:55.4]} 5. Be2 {[%clk 0:03:03.3]}
5... Bg7 {[%clk 0:02:56.8]} 6. h3 {[%clk 0:03:04.6]} 6... O-O {[%clk 0:02:57.9]}
7. O-O {[%clk 0:03:05.8]} 7... d6 {[%clk 0:02:58.8]} 8. c4 {[%clk 0:03:07]} 8...
Nfd7 {[%clk 0:02:58.8]} 9. Nc3 {[%clk 0:03:08.1]} 9... e5 {[%clk 0:02:59.1]} 10.
Bg3 {[%clk 0:03:08.7]} 10... Nc6 {[%clk 0:02:59.2]} 11. Qd2 {[%clk 0:03:08.5]}
11... h6 {[%clk 0:02:54.9]} 12. Rad1 {[%clk 0:03:08.4]} 12... Kh7 {[%clk
0:02:44.8]} 13. a3 {[%clk 0:03:07.3]} 13... a5 {[%clk 0:02:44.5]} 14. dxe5
{[%clk 0:03:03.5]} 14... Ndxe5 {[%clk 0:02:39.3]} 15. Nd5 {[%clk 0:03:02.4]}
15... Rb8 {[%clk 0:02:25.7]} 16. b4 {[%clk 0:02:50.2]} 16... axb4 {[%clk
0:02:22.4]} 17. axb4 {[%clk 0:02:52.1]} 17... Nxf3+ {[%clk 0:02:19.7]} 18. Bxf3
{[%clk 0:02:52.2]} 18... Ne5 {[%clk 0:02:20.4]} 19. Be2 {[%clk 0:02:49.9]} 19...
Ra8 {[%clk 0:02:03.2]} 20. f4 {[%clk 0:02:45.2]} 20... Nd7 {[%clk 0:02:02.7]}
21. Bf3 {[%clk 0:02:45.6]} 21... Ra3 {[%clk 0:01:23.6]} 22. f5 {[%clk 0:02:34]}
22... Ne5 {[%clk 0:01:08.1]} 23. Bxe5 {[%clk 0:02:00.5]} 23... Bxe5 {[%clk
0:01:09.8]} 24. Be4 {[%clk 0:01:58.1]} 24... Bxd5 {[%clk 0:01:04.9]} 25. fxg6+
{[%clk 0:01:48.4]} 25... fxg6 {[%clk 0:01:03.4]} 26. Qxd5 {[%clk 0:01:44.8]}
26... Qe7 {[%clk 0:00:40]} 27. Rxf8 {[%clk 0:01:41.3]} 27... Qxf8 {[%clk
0:00:41.9]} 28. Rf1 {[%clk 0:01:41.1]} 28... Ra1 {[%clk 0:00:43.3]} 29. Bb1
{[%clk 0:01:34.8]} 29... Qe8 {[%clk 0:00:18.7]} 30. Qe4 {[%clk 0:01:18]} 30...
Bh2+ {[%clk 0:00:15.6]} 31. Kf2 {[%clk 0:01:10.2]} 31... Qxe4 {[%clk 0:00:17.5]}
32. Bxe4 {[%clk 0:01:11.4]} 32... Rxf1+ {[%clk 0:00:15.8]} 33. Kxf1 {[%clk
0:01:13.3]} 33... Be5 {[%clk 0:00:17.7]} 34. Ke2 {[%clk 0:01:09.8]} 34... Kg7
{[%clk 0:00:17.2]} 35. Kf3 {[%clk 0:01:08.7]} 35... Kf6 {[%clk 0:00:18.1]} 36.
Bd3 {[%clk 0:01:06.3]} 36... g5 {[%clk 0:00:18]} 37. Ke4 {[%clk 0:01:06.9]}
37... Ke6 {[%clk 0:00:16.5]} 38. Be2 {[%clk 0:01:07.4]} 38... c6 {[%clk
0:00:16.5]} 39. Bg4+ {[%clk 0:01:07.3]} 39... Ke7 {[%clk 0:00:16.9]} 40. Kf5
{[%clk 0:01:06.8]} 40... b5 {[%clk 0:00:10]} 41. cxb5 {[%clk 0:00:54.9]} 41...
cxb5 {[%clk 0:00:11.9]} 42. Kg6 {[%clk 0:00:55.4]} 42... Bc3 {[%clk 0:00:12.7]}
43. Be2 {[%clk 0:00:55.3]} 43... Bxb4 {[%clk 0:00:12.1]} 44. Bxb5 {[%clk
0:00:55.4]} 44... Bd2 {[%clk 0:00:12.9]} 45. e4 {[%clk 0:00:52.3]} 45... Ke6
{[%clk 0:00:12]} 46. Kxh6 {[%clk 0:00:37.9]} 46... g4+ {[%clk 0:00:12.3]} 47.
Kg6 {[%clk 0:00:37.2]} 47... gxh3 {[%clk 0:00:07.6]} 48. gxh3 {[%clk 0:00:37.6]}
48... d5 {[%clk 0:00:09.5]} 49. exd5+ {[%clk 0:00:28.4]} 49... Kxd5 {[%clk
0:00:11.3]} 50. h4 {[%clk 0:00:28.5]} 50... Kc5 {[%clk 0:00:11.4]} 51. Be2
{[%clk 0:00:28.5]} 51... Kd4 {[%clk 0:00:12.6]} 52. h5 {[%clk 0:00:29.9]} 52...
Kc3 {[%clk 0:00:13.7]} 53. h6 {[%clk 0:00:29.7]} 53... Bxh6 {[%clk 0:00:14.6]}
54. Kxh6 {[%clk 0:00:31]} 1/2-1/2

[Event "*** Titled Tuesday Blitz"]
[Site "Chess.com"]
[Date "2018.05.01"]
[Round "3"]
[White "Fins0905"]
[Black "Hrant_ChessMood"]
[Result "1/2-1/2"]
[WhiteElo "2570"]
[BlackElo "2831"]
[TimeControl "180+2"]
[EndTime "13:41:17 PDT"]
[Termination "Game drawn by repetition"]

1. d4 {[%clk 0:03:01.9]} 1... Nf6 {[%clk 0:02:58.8]} 2. Nf3 {[%clk 0:03:01.2]}
2... g6 {[%clk 0:02:55.8]} 3. Bg5 {[%clk 0:03:01.3]} 3... Bg7 {[%clk 0:02:51.6]}
4. Nbd2 {[%clk 0:03:01.8]} 4... O-O {[%clk 0:02:45.9]} 5. e3 {[%clk 0:02:59.3]}
5... b6 {[%clk 0:02:45]} 6. Bd3 {[%clk 0:02:54.1]} 6... Bb7 {[%clk 0:02:45.8]}
7. O-O {[%clk 0:02:52.9]} 7... d6 {[%clk 0:02:44.5]} 8. h3 {[%clk 0:02:50]} 8...
Nbd7 {[%clk 0:02:45.3]} 9. Qe2 {[%clk 0:02:40.6]} 9... c5 {[%clk 0:02:44.7]} 10.
a4 {[%clk 0:02:33.5]} 10... a6 {[%clk 0:02:45]} 11. c3 {[%clk 0:02:30.5]} 11...
Qc7 {[%clk 0:02:43.9]} 12. e4 {[%clk 0:02:21.2]} 12... e6 {[%clk 0:02:10.3]} 13.
Rfe1 {[%clk 0:01:57.7]} 13... h6 {[%clk 0:02:03.3]} 14. Bf4 {[%clk 0:01:55.7]}
14... Rfe8 {[%clk 0:01:56.2]} 15. Bh2 {[%clk 0:01:42.3]} 15... e5 {[%clk
0:01:51]} 16. dxe5 {[%clk 0:01:41.4]} 16... Nxe5 {[%clk 0:01:45.4]} 17. Nxe5
{[%clk 0:01:39.2]} 17... dxe5 {[%clk 0:01:47.3]} 18. g4 {[%clk 0:00:59.2]} 18...
Rad8 {[%clk 0:01:45.8]} 19. Rad1 {[%clk 0:00:52.8]} 19... Bc6 {[%clk 0:00:53]}
20. b3 {[%clk 0:00:47.3]} 20... a5 {[%clk 0:00:53.5]} 21. Bb5 {[%clk 0:00:43.2]}
21... Nh7 {[%clk 0:00:52.8]} 22. Bxc6 {[%clk 0:00:33.8]} 22... Qxc6 {[%clk
0:00:54.7]} 23. Kg2 {[%clk 0:00:19.6]} 23... Ng5 {[%clk 0:00:53.7]} 24. f3
{[%clk 0:00:20]} 24... Ne6 {[%clk 0:00:40.9]} 25. Qb5 {[%clk 0:00:20.2]} 25...
Qxb5 {[%clk 0:00:34.2]} 26. axb5 {[%clk 0:00:20.9]} 26... Rd3 {[%clk 0:00:36.1]}
27. Nc4 {[%clk 0:00:09.7]} 27... Rxc3 {[%clk 0:00:37.1]} 28. Nxb6 {[%clk
0:00:10.9]} 28... Rxb3 {[%clk 0:00:37.9]} 29. Rb1 {[%clk 0:00:12.2]} 29... Rb4
{[%clk 0:00:24]} 30. Nd5 {[%clk 0:00:11.8]} 30... Rb8 {[%clk 0:00:24.5]} 31. b6
{[%clk 0:00:09.8]} 31... Nf4+ {[%clk 0:00:16.1]} 32. Bxf4 {[%clk 0:00:08.4]}
32... exf4 {[%clk 0:00:18]} 33. Rec1 {[%clk 0:00:07.8]} 33... Bd4 {[%clk
0:00:18.9]} 34. Kf1 {[%clk 0:00:05.3]} 34... Kg7 {[%clk 0:00:19]} 35. Ke2 {[%clk
0:00:06.7]} 35... h5 {[%clk 0:00:13.6]} 36. Kd3 {[%clk 0:00:07.5]} 36... Be3
{[%clk 0:00:11.9]} 37. Rd1 {[%clk 0:00:05.1]} 37... c4+ {[%clk 0:00:10.9]} 38.
Kc3 {[%clk 0:00:05.8]} 38... Bxb6 {[%clk 0:00:03.1]} 39. Nxb4 {[%clk 0:00:04.9]}
39... axb4+ {[%clk 0:00:05]} 40. Kxc4 {[%clk 0:00:06.4]} 40... Ba5 {[%clk
0:00:04.1]} 41. Rd5 {[%clk 0:00:06.8]} 41... Rc8+ {[%clk 0:00:04.3]} 42. Rc5
{[%clk 0:00:07.9]} 42... Rxc5+ {[%clk 0:00:03]} 43. Kxc5 {[%clk 0:00:09.8]}
43... hxg4 {[%clk 0:00:04.2]} 44. hxg4 {[%clk 0:00:10.8]} 44... Kf6 {[%clk
0:00:06.1]} 45. Kb5 {[%clk 0:00:12.1]} 45... Bc7 {[%clk 0:00:06.6]} 46. Rxb4
{[%clk 0:00:11.8]} 46... Kg5 {[%clk 0:00:08]} 47. Rc4 {[%clk 0:00:13.2]} 47...
Be5 {[%clk 0:00:09]} 48. Rc5 {[%clk 0:00:11]} 48... f6 {[%clk 0:00:09.9]} 49.
Rd5 {[%clk 0:00:10.3]} 49... Kh4 {[%clk 0:00:11.1]} 50. Rd3 {[%clk 0:00:11.6]}
50... g5 {[%clk 0:00:10.1]} 51. Kc4 {[%clk 0:00:12.4]} 51... Kg3 {[%clk
0:00:11.5]} 52. Kd5 {[%clk 0:00:13.4]} 52... Kf2 {[%clk 0:00:11.7]} 53. Ke6
{[%clk 0:00:12.9]} 53... Ke2 {[%clk 0:00:13.1]} 54. Rb3 {[%clk 0:00:13.7]} 54...
Bd4 {[%clk 0:00:14.3]} 55. Kf5 {[%clk 0:00:14.7]} 55... Be5 {[%clk 0:00:15.6]}
56. Ra3 {[%clk 0:00:12.5]} 56... Bd4 {[%clk 0:00:16.8]} 57. Rb3 {[%clk
0:00:09.7]} 57... Be5 {[%clk 0:00:18]} 58. Kg6 {[%clk 0:00:06.4]} 58... Kf2
{[%clk 0:00:19]} 59. Kf5 {[%clk 0:00:06.5]} 59... Ke2 {[%clk 0:00:20.3]} 1/2-1/2